Cogmind - Beta 14 @@@ ROGUE MODE // 2024.10.08 @ 17:00:21 Player: Xaria Result: Destroyed by Y-45 Defender with Beam Rifle Performance ------------- Evolutions (2) 1000 Regions Visited (5) 1000 Robots Destroyed (70) 350 Value Destroyed (1238) 1238 Prototype IDs (24) 480 Alien Tech Used (0) 0 Bonus (300) 300 TOTAL SCORE: 4368 Bonus ------- Aligned with FarCom 300 Cogmind --------- Core Integrity 0/550 Matter 262/300 Energy 100/100 System Corruption 0% Temperature Cool (27) Movement Core (1350) Ox26 Location -8/Materials Parts ------- > --- POWER (1) -------- (None) > --- PROPULSION (4) --- (None) > --- UTILITY (4) ------ Huge Storage Unit > --- WEAPON (2) ------- (None) > --- INVENTORY (25) --- Light Ion Engine Light Treads Light Treads Wheel Flight Unit Flight Unit Flight Unit Flight Unit Cesium-ion Thruster Medium Storage Unit Large Storage Unit High-capacity Storage Unit High-capacity Matter Pod (200) Improved Sensor Array Experimental Sensor Array Improved Signal Interpreter Improved Terrain Scanner Light Armor Plating Assault Rifle Heavy Assault Rifle Enhanced Autogun Enhanced Autogun Enhanced Autogun Grenade Launcher Field Lobotomy Kit (5) Peak State ------------ > --- POWER ------------ Light Nuclear Core > --- PROPULSION ------- Light Treads Light Treads Light Treads Compact Wheel > --- UTILITY ---------- Huge Storage Unit Structural Scanner Hardened Light Armor Plating Hardened Medium Armor Plating > --- WEAPON ----------- Enhanced Autogun Enhanced Autogun > --- INVENTORY -------- Light Ion Engine Light Treads Light Treads Wheel Flight Unit Flight Unit Flight Unit Cesium-ion Thruster Medium Storage Unit Large Storage Unit High-capacity Storage Unit High-capacity Matter Pod Improved Sensor Array Experimental Sensor Array Improved Signal Interpreter Improved Terrain Scanner Light Armor Plating Assault Rifle Assault Rifle Assault Rifle Light Cannon Grenade Launcher Grenade Launcher Field Lobotomy Kit Mining Claw [Rating: 27] Favorites ----------- Power Light Ion Engine Engine Light Ion Engine Power Core Light Nuclear Core Propulsion Light Treads Treads Light Treads Leg Aluminum Leg Wheel Wheel Utility Seismic Detector Device Seismic Detector Storage High-capacity Storage Unit Protection Hardened Light Armor Plating Weapon Assault Rifle Energy Gun Small Laser Ballistic Gun Assault Rifle Launcher Grenade Launcher Special Weapon Mining Laser Slashing Weapon Mining Claw Build | -11 -10 -10 -10 -9 -8 ------- Run | Yrd Mat Min Exi Min Mat Slots Evolved 4 | . . . . . 4 Power . | . . . . . . Propulsion 2 | . . . . . 2 Utility 2 | . . . . . 2 Weapon . | . . . . . . Parts Attached 68 | 8 21 4 1 2 32 Power 7 | 1 2 . 1 . 3 Engine 6 | 1 2 . 1 . 2 Core 1 | . . . . . 1 Reactor . | . . . . . . Propulsion 16 | 2 6 . . 1 7 Treads 10 | . 3 . . 1 6 Leg 2 | 2 . . . . . Wheel 4 | . 3 . . . 1 Hover . | . . . . . . Flight . | . . . . . . Utility 13 | 2 4 1 . 1 5 Device 5 | 1 2 . . . 2 Storage 5 | 1 2 1 . . 1 Processor . | . . . . . . Hackware . | . . . . . . Protection 3 | . . . . 1 2 Artifact . | . . . . . . Weapon 32 | 3 9 3 . . 17 Energy Gun 1 | 1 . . . . . Energy Cannon . | . . . . . . Ballistic Gun 20 | 2 6 2 . . 10 Ballistic Cannon . | . . . . . . Launcher 6 | . 2 1 . . 3 Special Weapon 1 | . 1 . . . . Impact Weapon . | . . . . . . Slashing Weapon 4 | . . . . . 4 Piercing Weapon . | . . . . . . Special Melee Weapon . | . . . . . . Unidentified Prototypes 1 | . . . . . 1 Parts Lost 10 | . . . . . 10 Power 1 | . . . . . 1 Propulsion 4 | . . . . . 4 Utility 3 | . . . . . 3 Weapon 2 | . . . . . 2 Highest Loss Streak 10 | . . . . . 10 To Critical Strikes 1 | . . . . . 1 Average Slot Usage (%) 99 | . 100 100 100 100 98 Engine 10 | . 14 14 14 14 4 Core 1 | . . . . . 4 Treads 20 | . 21 14 14 14 26 Wheel 9 | . 5 14 14 14 8 Device 11 | . 14 14 14 1 10 Storage 12 | . 14 14 14 14 9 Protection 7 | . . . . 12 16 Ballistic Gun 22 | . 27 27 28 28 13 Peak Build Rating 27 | 9 9 10 12 13 27 Average Rating 13 | 5 8 9 11 12 21 On Entrance 8 | . 9 8 10 12 13 Naked Turns . | . . . . . . Heaviest Build 105 | 12 29 50 53 59 105 Greatest Support 60 | 20 40 10 10 10 60 Greatest Overweight (x) 26 | . 2 4 5 5 26 Average Overweight (x) 3 | . . 3 4 5 4 Largest Inventory Capacity 25 | 8 15 20 20 20 25 Average Capacity 19 | 7 14 19 20 20 24 Most Carried 25 | 6 15 20 20 20 25 Average Carried 18 | 5 12 18 19 19 23 Final Capacity 25 | 8 15 20 20 20 25 Final Carried 25 | 6 14 20 20 20 25 Class Distribution -------------------- 52% | Scavenger-Mutant 41% | Mutant 6% | Scavenger-Skirmisher Dominant Class ---------------- Mutant | -10/Materials Scavenger-Mutant | -10/Mines Scavenger-Mutant | -10/Exiles Mutant | -9/Mines Scavenger-Mutant | -8/Materials Resources | -11 -10 -10 -10 -9 -8 ----------- Run | Yrd Mat Min Exi Min Mat Matter Collected 2138 | 309 738 240 . 54 797 Remotely . | . . . . . . Salvage Created 2111 | 127 806 32 . 112 1034 Parts 164 | 11 65 4 . 9 75 Haulers Intercepted 3 | . 1 . . . 2 Recyclers Shooed 5 | . 2 . . . 3 Parts Field Recycled . | . . . . . . Retrieved Matter . | . . . . . . Parts Self-Destructed . | . . . . . . Prevented . | . . . . . . Kills | -11 -10 -10 -10 -9 -8 ------- Run | Yrd Mat Min Exi Min Mat Combat Hostiles Destroyed 40 | . 13 4 . . 23 Guns 21 | . 7 1 . . 13 AOE 19 | . 6 3 . . 10 Classes Destroyed 11 | 2 7 1 . . 1 Worker 4 | . 4 . . . . Builder 7 | . 2 . . 1 4 Tunneler 5 | 3 2 . . . . Hauler 3 | . 1 . . . 2 Recycler 7 | 1 2 . . 1 3 Operator 1 | . 1 . . . . Watcher 4 | . 3 . . . 1 Swarmer 20 | . 6 3 . . 11 Grunt 17 | . 7 . . . 10 Sentry 2 | . . . . . 2 Assembled 1 | . . 1 . . . Best Kill Streak 6 | 3 3 3 . 2 6 Combat Bots Only 5 | . 3 3 . . 5 Max Kills in Single Turn 3 | 1 2 1 . 1 3 Gunslinging . | . . . . . . Exploded 3 | . 2 1 . . 3 Melee . | . . . . . . Uniques/NPCs Destroyed . | . . . . . . Combat | -11 -10 -10 -10 -9 -8 -------- Run | Yrd Mat Min Exi Min Mat Hostile Shots Fired 217 | . 60 2 . . 155 Missed 62 | . 21 . . . 41 Damage Taken 2921 | . 668 42 . 10 2201 Core 699 | . 127 8 . . 564 Absorbed by Shields . | . . . . . . Core Remaining (%) 73 | 100 . . . 46 . Volleys Fired 181 | 13 72 8 . 4 84 Largest 2 | 2 2 2 . 2 2 Hottest 100 | 60 100 43 . 43 48 Shots Fired 334 | 25 137 11 . 8 153 Gun 307 | 25 130 6 . 8 138 Cannon . | . . . . . . Launcher 26 | . 6 5 . . 15 Special 1 | . 1 . . . . Kinetic 295 | 13 130 6 . 8 138 Thermal 13 | 12 1 . . . . Explosive 26 | . 6 5 . . 15 Electromagnetic . | . . . . . . Robot Hit Streak 14 | 2 7 4 . 5 14 Robot Miss Streak 4 | 3 3 2 . 4 4 Penetration Max . | . . . . . . Secondary Targets 3 | . 3 . . . . Max Gunslinging Chain 1 | . 1 . . . . Shots Hit Robots 183 | 13 74 4 . 5 87 Core Hits 122 | 5 40 5 . 3 69 Critical Kills . | . . . . . . Critical Parts Destroyed 1 | . 1 . . . . Critical Strikes 1 | . 1 . . . . Destroy 1 | . 1 . . . . Melee Attacks 3 | . . . . . 3 Impact . | . . . . . . Slashing 3 | . . . . . 3 Piercing . | . . . . . . Sneak Attacks . | . . . . . . Combat Hostiles . | . . . . . . Follow-up Attacks . | . . . . . . Damage Inflicted 3748 | 161 1256 156 . 85 2090 Guns 2549 | 161 964 46 . 64 1314 Cannons . | . . . . . . Explosions 1174 | . 292 106 . . 776 Melee . | . . . . . . Ramming 25 | . . 4 . 21 . Kinetic 2516 | 128 964 46 . 64 1314 Thermal 33 | 33 . . . . . Explosive 1174 | . 292 106 . . 776 Electromagnetic . | . . . . . . Impact . | . . . . . . Slashing . | . . . . . . Piercing . | . . . . . . Highest Corruption . | . . . . . . Average Corruption . | . . . . . . Corruption Purged . | . . . . . . Corruption Blocked . | . . . . . . Overload Shots . | . . . . . . Overflow Damage 4 | . 3 . . 1 . Projectiles . | . . . . . . Explosions 3 | . 3 . . . . Melee 1 | . . . . 1 . Knockbacks . | . . . . . . Impact . | . . . . . . Kinetic . | . . . . . . Secondary . | . . . . . . Self-Inflicted Damage 97 | . . 2 . 10 85 Shots 5 | . . . . . 5 Rammed 2 | . . 1 . 1 . Targets Rammed 2 | . . 1 . 1 . Kicked . | . . . . . . Crushed . | . . . . . . Highest Temperature 129 | . 20 3 . . 129 Average Temperature 28 | . 4 3 . . 32 Received Heat Transfer 828 | . 180 9 . . 639 Siege Activations . | . . . . . . Robots Corrupted . | . . . . . . Combat Hostiles . | . . . . . . Parts Fried . | . . . . . . Impact Corruptions 1 | . . . . 1 . Robots Melted . | . . . . . . Combat Hostiles . | . . . . . . Parts Melted . | . . . . . . Heat Transferred 75 | 75 . . . . . Parts Sabotaged . | . . . . . . Parts Stolen . | . . . . . . Parts Stripped . | . . . . . . Power Chain Reactions . | . . . . . . Alert | -11 -10 -10 -10 -9 -8 ------- Run | Yrd Mat Min Exi Min Mat Peak Influence 372 | 20 278 153 . 10 372 Initial 70 | . 13 70 . . 3 Average 126 | 9 117 90 . 3 199 Maximum Alert Level 1 | . 1 . . . 1 Low Security (%) 77 | 100 92 100 . 100 49 Level 1 22 | . 7 . . . 50 Level 2 . | . . . . . . Level 3 . | . . . . . . Level 4 . | . . . . . . Level 5 . | . . . . . . High Security . | . . . . . . Max Security . | . . . . . . Squads Dispatched 3 | . 2 . . . 1 Investigation 1 | . 1 . . . . Extermination . | . . . . . . Reinforcement 2 | . 1 . . . 1 Assault . | . . . . . . Garrison . | . . . . . . Intercept . | . . . . . . Searches Triggered . | . . . . . . Construction Impeded . | . . . . . . Haulers Reinforced . | . . . . . . Active Scanning Responses . | . . . . . . Cargo Convoy Interrupts . | . . . . . . Stealth | -11 -10 -10 -10 -9 -8 --------- Run | Yrd Mat Min Exi Min Mat Distress Signals 8 | . 2 . . . 6 Communications Jammed . | . . . . . . Distress Signals . | . . . . . . Times Spotted 68 | . 25 5 . . 38 Peak Tracking Total 7 | . 5 2 . . 7 Tactical Retreats 5 | . 1 . . . 4 Traps | -11 -10 -10 -10 -9 -8 ------- Run | Yrd Mat Min Exi Min Mat Traps Triggered 1 | . 1 . . . . Indirectly . | . . . . . . Trap Hack Attempts . | . . . . . . Triggered . | . . . . . . Disarmed . | . . . . . . Reprogrammed . | . . . . . . Reused . | . . . . . . Traps Extracted . | . . . . . . Installed . | . . . . . . Triggered . | . . . . . . Machines | -11 -10 -10 -10 -9 -8 ---------- Run | Yrd Mat Min Exi Min Mat Machines Disabled 1 | . . . . . 1 Max in Single Turn 1 | . . . . . 1 Machines Repaired . | . . . . . . Machines Dismantled . | . . . . . . Machines Sabotaged . | . . . . . . Overloaded Fab Kills . | . . . . . . Hacking | -11 -10 -10 -10 -9 -8 --------- Run | Yrd Mat Min Exi Min Mat Machines Accessed 18 | . 9 . 5 . 4 Terminals 10 | . 6 . . . 4 Fabricators . | . . . . . . Repair Stations 1 | . 1 . . . . Recycling Units 2 | . 2 . . . . Scanalyzers . | . . . . . . Garrison Access . | . . . . . . Total Hacks 81 | . 22 . 50 . 9 Successful 59 | . 6 . 50 . 3 Failed 22 | . 16 . . . 6 Catastrophic 6 | . 3 . . . 3 Database Lockouts . | . . . . . . Manual 24 | . 15 . 1 . 8 Terminals 24 | . 15 . . . 9 Fabricators . | . . . . . . Repair Stations 2 | . 2 . . . . Recycling Units 5 | . 5 . . . . Scanalyzers . | . . . . . . Garrison Access . | . . . . . . Terminal Hacks 56 | . 3 . 50 . 3 Record 49 | . . . 49 . . Robot Analysis 4 | . 3 . . . 1 Branch Access Points 1 | . . . . . 1 Zone Layout 1 | . . . . . 1 Derelict Proto ID Bank 1 | . . . 1 . . Fabricator Hacks . | . . . . . . Repair Station Hacks 1 | . 1 . . . . Scan Component 1 | . 1 . . . . Recycling Unit Hacks 1 | . 1 . . . . Retrieve Components 1 | . 1 . . . . Scanalyzer . | . . . . . . Garrison Access Hacks . | . . . . . . Unauthorized Hacks 1 | . 1 . . . . Terminals 1 | . 1 . . . . Assimilate 1 | . 1 . . . . Fabricators . | . . . . . . Repair Stations . | . . . . . . Recycling Units . | . . . . . . Scanalyzers . | . . . . . . Garrison Access . | . . . . . . Data Cores Recovered . | . . . . . . Used . | . . . . . . Hacking Detections 11 | . 7 . . . 4 Full Trace Events 3 | . 3 . . . . Feedback Events . | . . . . . . Feedback Blocked . | . . . . . . Robot Schematics Acquired . | . . . . . . Robots Built . | . . . . . . Authchips . | . . . . . . Time . | . . . . . . Total Robot Build Rating . | . . . . . . Part Schematics Acquired . | . . . . . . Parts Built . | . . . . . . Authchips . | . . . . . . Time . | . . . . . . Total Part Build Rating . | . . . . . . Parts Repaired . | . . . . . . Time . | . . . . . . Parts Recycled . | . . . . . . Recycled Matter . | . . . . . . Retrieved Matter . | . . . . . . Retrieved Components . | . . . . . . Parts Scanalyzed . | . . . . . . Part Schematics Acquired . | . . . . . . Parts Damaged . | . . . . . . Bothacking | -11 -10 -10 -10 -9 -8 ------------ Run | Yrd Mat Min Exi Min Mat Used RIF Installer . | . . . . . . Robots Hacked . | . . . . . . Non-combat . | . . . . . . Combat . | . . . . . . Robot Hacks Applied . | . . . . . . Relay Couplers Released . | . . . . . . Fabnet Peak Effective % . | . . . . . . Robots Rewired . | . . . . . . Allies Hacked . | . . . . . . Hacks Repelled . | . . . . . . Allies | -11 -10 -10 -10 -9 -8 -------- Run | Yrd Mat Min Exi Min Mat Total Allies 3 | . . 3 . . . Largest Group 3 | . . 3 3 3 3 Highest-Rated Group 40 | . . 40 40 40 40 Highest-Rated Ally 16 | . . 16 16 16 16 Total Orders . | . . . . . . Ally Attacks 32 | . . 10 . . 22 Total Damage 280 | . . 89 . . 191 Kills 2 | . . 2 . . . Allies Corrupted . | . . . . . . Allies Melted . | . . . . . . Intel | -11 -10 -10 -10 -9 -8 ------- Run | Yrd Mat Min Exi Min Mat Robot Analysis Total 4 | . 3 . . . 1 Derelict Logs Recovered 3 | . . . . 3 . Drone Launches . | . . . . . . Drone Recoveries . | . . . . . . Exploration | -11 -10 -10 -10 -9 -8 ------------- Run | Yrd Mat Min Exi Min Mat Turns Passed 5358 | 184 1342 482 732 715 1903 Spaces Moved 2695 | 78 690 297 479 437 714 Core 8 | 6 . . . . 2 Treads 698 | . 477 . . . 221 Legs 138 | 72 66 . . . . Wheels 1851 | . 147 297 479 437 491 Hover . | . . . . . . Flight . | . . . . . . Fastest Speed 50 | 50 110 110 140 155 160 Average Speed 165 | 114 156 138 151 155 208 Slowest Speed 1350 | 120 240 140 155 155 1350 Overloaded Moves . | . . . . . . Propulsion Burnouts . | . . . . . . Robots Hopped . | . . . . . . Cave-ins Triggered . | . . . . . . Exploration Rate (%) 58 | 4 95 55 91 65 41 Regions Visited 5 Branch Regions 3 Pre-discovered Areas 2 | . . . 1 1 . Known Exits Taken . | . . . . . . Unknown Exits Taken 5 | 1 1 1 1 1 . Scrap Searched 3 | . . 1 . 2 . Spaces Dug 10 | . 1 . . . 9 Terrain Destroyed 152 | . 50 15 . . 87 Melee 3 | . . . . . 3 Projectile 1 | . 1 . . . . AOE 148 | . 49 15 . . 84 Terrain Rammed . | . . . . . . Walls Destroyed . | . . . . . . Machines Disabled . | . . . . . . Actions | -11 -10 -10 -10 -9 -8 --------- Run | Yrd Mat Min Exi Min Mat Total 3247 | 144 818 354 488 467 976 Wait 204 | 36 . 37 5 20 106 Move 2690 | 77 689 296 478 436 714 Hop . | . . . . . . Pick Up 54 | 8 19 7 2 1 17 Fast Attach 19 | 7 3 . . 2 7 Attach 14 | . 7 . . . 7 Detach 2 | . 1 . . . 1 Swap 35 | 1 11 4 1 . 18 Drop 43 | 2 16 1 2 3 19 Fire 181 | 13 72 8 . 4 84 Melee 3 | . . . . . 3 Ram 2 | . . 1 . 1 . Kick . | . . . . . . Crush . | . . . . . . Escape Stasis . | . . . . . . Rewire . | . . . . . . Trap . | . . . . . . Miscellaneous . | . . . . . . Route ------- -11/Scrapyard -10/Materials (discovered 4 exits: [*Mat x3] / [*Min]) -10/Mines (discovered 2 exits: [*Mat] / *Exi) -10/Exiles -9/Mines -8/Materials (discovered 3 exits: *Fac x2 / *Sto) History --------- Turn | Location | Event 11 | -11/Scrapyard | Discovered new exit (range 15) 185 | -11/Scrapyard | Entered Materials 300 | -10/Materials | Build established: Mutant 662 | -10/Materials | Discovered new exit (range 7) 1086 | -10/Materials | Discovered new exit (range 9) 1200 | -10/Materials | Discovered new exit (range 14) 1211 | -10/Materials | Core integrity fell below 50% 1402 | -10/Materials | Discovered new exit (range 15) 1527 | -10/Materials | Entered Mines 1530 | -10/Mines | Joined a pair of Derelicts in attacking an 0b10 outpost 1610 | -10/Mines | Assembled infested the area 1615 | -10/Mines | Assisted by a Guerilla fighting off Assembled 1857 | -10/Mines | Build established: Scavenger-Mutant 1858 | -10/Mines | Discovered new exit (range 4) 1887 | -10/Mines | Assisted by bots powering up and referring to "LRC-V3" 1988 | -10/Mines | Deemed a non-threat by the Exiles lab entrance 1990 | -10/Mines | Discovered new exit (range 5) 2009 | -10/Mines | Entered Exiles 2009 | -10/Exiles | Accompanied by 3 allies 2044 | -10/Exiles | Met 8R-AWN 2068 | -10/Exiles | Met EX-HEX 2110 | -10/Exiles | Met EX-BIN 2126 | -10/Exiles | Aligned with FarCom system 2127 | -10/Exiles | Given EX-Vault access code 2173 | -10/Exiles | Opened EX-Vault 2184 | -10/Exiles | Found Field Lobotomy Kit 2250 | -10/Exiles | Warned to stay clear of 0b10 Research branches 2298 | -10/Exiles | Met EX-DEC 2309 | -10/Exiles | Learned location of Zion (-6) 2432 | -10/Exiles | Visited The Gauntlet 2716 | -10/Exiles | Discovered new exit (range 14) 2741 | -10/Exiles | Left Exiles lab with Field Lobotomy Kit 2741 | -10/Exiles | Entered Mines 2741 | -9/Mines | Accompanied by 3 allies 2935 | -9/Mines | Learned location of Recycling (-8) 2938 | -9/Mines | Learned 8 Materials zone layouts 2962 | -9/Mines | Found a damaged Exp. Sensor Array with a note attached 2968 | -9/Mines | Found Prototype Device 3159 | -9/Mines | Build established: Mutant 3346 | -9/Mines | Learned Materials garrison access intel 3360 | -9/Mines | Discovered new exit (range 8) 3456 | -9/Mines | Entered Materials 3456 | -8/Materials | Accompanied by 3 allies 3456 | -8/Materials | Evolved 4 slots: Propulsion x2, Utility x2 3457 | -8/Materials | Identified exit to Factory 3540 | -8/Materials | Lost 3 allies 3749 | -8/Materials | Build established: Scavenger-Skirmisher 4129 | -8/Materials | Build established: Scavenger-Mutant 4152 | -8/Materials | Discovered exit to Factory (range 16) 4305 | -8/Materials | Identified exit to Storage 5342 | -8/Materials | Core integrity fell below 50% 5349 | -8/Materials | Core integrity fell below 20% 5359 | -8/Materials | Destroyed by Y-45 Defender with Beam Rifle Last Messages --------------- 05331_ Critical hit (Blast). 05331_ Knocked back. 05333_ The unstable cave ceiling collapses. 05337_ Penetrated by Slug. 05337_ Lgt. Treads destroyed. 05337_ Knocked back. 05337_ Acquired 6 matter. 05338_ Com. Wheel destroyed. 05339_ Knocked back. 05341_ M-13 Machinist repairs Y-45 Defender. 05343_ Knocked back. 05346_ M-13 Machinist repairs H-61 Shepherd. 05346_ Slug penetrates Wall. 05351_ Knocked back. 05353_ M-13 Machinist repairs Y-45 Defender. 05356_ Slug penetrates R-06 Scavenger. 05356_ R-06 Scavenger suffers critical hit (Blast). 05356_ R-06 Scavenger destroyed. 05359_ Critical hit (Burn: +37). Map ----- +----------------------------------------------------+ | ???????????????????????????? | | ???????????????????????????? | | ???????????????????????????? | | ????????????????????????????###########+########+# | | ???????????????????????????????????# ## | | ???????????????????????????????????# """ ## | | ???????????????????????????????????# """ ## | | ????????????????????????????######## """ ## | | ???????????????????????????? # ## """ | | ???????????????????????? ^ ? """ # "" ## """ | | ???????????????????????# ? """ # "T ## """ | | ???????????????????????# ? """ # "" ## | | ??????????????????????? ? # ## """ | | ??????????????????????? + #Y######### """ | | ??????????????????????? # ###???????# """ | | ???????????????????????# # Y#????????# | | ???????????????????????# # ##????????##### | | ???????????????????????# # #?????????????? | | ???????????????????????# # #?????????????? | | ???????????????????????# #########?????????????? | | ????????????????????; ##????????????????????? | | ???????????????????## ###########???????????? | | ??????????????????### ;# #???????????? | | ??????????????### ;# "" #???????????? | | ##/####??????????????## %# ""S #???????????? | | ##??????????????##%*@ %# "" #???????????? | | ??????????????##=u> + #???????????? | | [ T ?????????????????# = # """ #???????????? | | ?????????###?????# # """ #???????????? | | #????????########## ## """ #???????????? | | # ##????????## ####### ## #???????????? | | # ##????????## !!! # # ########???????????? | | # ####??????##"" !! Y ##?????????????????? | | + #####?????##"Y !! ###?????????????????? | | # %# ###?????##"" H # ##?????????????????? | | # % ####???## [ Y ###????????????????? | | # # ######?##+##+##% m ####????????????????? | | # ############ # ! !##????????????????? | | # # ##### # # !!##????????????????? | | # # """## + "Y" #% !!##????????????????? | | # + T"## # """ # !!##????????????????? | | # # !!"""## # # !!##????????????????? | | # # =% # ####### !!##????????????????? | | # # * ## ##+####### % ######????????????????? | | #########%## "T" ## ######????????????????? | | ###### # ## ##????????????????????? | | # ! # ##????????????????????? | | # ###### T # ## ##????????????????????? | | # ###### ######### ##????????##########??? | | # ###### ## ## ##????????##########??? | +----------------------------------------------------+ Best States ------------- Heat Dissipation 31 Energy Generation 14 Energy Capacity 265 Matter Stores 300 Matter Capacity 300 Sight Range 16 Terrain Scan Range 16 Terrain Scan Density 10 Armor Coverage 375 Evasion (%) 55 Recoil Reduction 3 Item Schematics ----------------- None Robot Schematics ------------------ None Fabricated ------------ Nothing Alien Tech Used ----------------- None Achievements -------------- Dramatic Entrance Challenges ------------ None Game ------ Seed PitchforkVortexLeg Manual? 0 Play Time 00:53:52 Cumulative 10.6 hours Start 2024.10.08 @ 16:04:40 End 2024.10.08 @ 17:00:21 Sessions 1 Manual Loads 0 Difficulty Rogue Special Mode None Game No. 12 Rogue 12 Adventurer 0 Explorer 0 Win Type - Total 0 Types 0/0/0/0/0/0/0/0/0 Lore% 19 Gallery% 12 Achievement% 19 Wizard Run 0 Options --------- Layout 1 ASCII 0 Keyboard 0 Movement Mouse Keybinds 0 Fullscreen 1 Font 24/Smallcaps Map View 50x35 Zoom Use 0% Tactical HUD 1 Map Filters NONE Filters NONE Steam 1 RUN: 23b4e2a9-abb3-42ce-a71e-032c3c917575